Cogmind - Beta 17 @@@ ROGUE MODE // 2026.07.26 @ 17:04:33 Player: operation hog fire Result: Self-destructed Performance ------------- Evolutions (6) 3000 Regions Visited (8) 1600 Robots Destroyed (136) 680 Value Destroyed (4598) 4598 Prototype IDs (13) 260 Alien Tech Used (0) 0 Bonus (386) 386 TOTAL SCORE: 10524 Bonus ------- High Alert Combat Kills 8 Follower Combat Kills 378 Cogmind --------- Core Integrity 834/1150 Matter 30/300 Energy 28/170 System Corruption 1% Temperature Cool (43) Movement Treading (400) Ox3 Location -4/Factory Parts ------- > --- POWER (2) -------- Light Antimatter Reactor > --- PROPULSION (5) --- Medium Treads > --- UTILITY (8) ------ Advanced Heat Sink Huge Storage Unit Advanced Targeting Computer Target Analyzer Graphene Brace Advanced Focal Shield Remote Force Field System Shield > --- WEAPON (4) ------- Compact Ion Cannon > --- INVENTORY (25) --- Advanced Coolant Injector Matter Compressor (250) Trap Scanner Improved Terrain Scanner Improved Terrain Scan Processor Seismic Detector Precision Energy Filter Improved Light Armor Plating Remote Shield Heavy Tesla Rifle Faulty Advanced Plasma Rifle Advanced Datajack Powered Hammer Phasing Sabre Peak State ------------ > --- POWER ------------ F-cell Engine Fission Core > --- PROPULSION ------- Armored Treads Armored Treads Armored Treads Improved Medium Treads Armored Medium Treads > --- UTILITY ---------- Improved Cooling System Huge Storage Unit Advanced Targeting Computer Target Analyzer Precision Energy Filter Hardened Medium Armor Plating Advanced Focal Shield System Shield > --- WEAPON ----------- Heavy Tesla Rifle Heavy Plasma Cannon Compact Ion Cannon Coil Gun > --- INVENTORY -------- Medium Treads Advanced Heat Sink Advanced Coolant Injector Matter Compressor Trap Scanner Improved Terrain Scanner Improved Terrain Scan Processor Seismic Detector Kinecellerator Phase Shifter Hardened Medium Armor Plating Hardened Medium Armor Plating Improved Light Armor Plating Graphene Brace Hardlight Generator Remote Shield Remote Force Field Heavy Assault Cannon Advanced Assault Cannon Improved Grenade Launcher Heavy Missile Launcher Advanced Datajack Great Maul Phasing Sabre [Rating: 96] Favorites ----------- Power Cooled Ion Engine Engine Cooled Ion Engine Power Core Fusion Compressor Reactor Light Antimatter Reactor Propulsion Armored Treads Treads Armored Treads Leg Aluminum Leg Wheel Armored Wheel Utility Advanced Targeting Computer Device Seismic Detector Storage Huge Storage Unit Processor Advanced Targeting Computer Hackware System Shield Protection Improved Light Armor Plating Weapon Assault Rifle Energy Gun Heavy Tesla Rifle Energy Cannon Compact Ion Cannon Ballistic Gun Assault Rifle Ballistic Cannon Advanced Assault Cannon Launcher Improved Grenade Launcher Special Weapon Remote Datajack Impact Weapon Heavy Flail Slashing Weapon Axe Special Melee Weapon Advanced Datajack Build | -11 -10 -9 -8 -7 -6 -6 -5 -4 ------- Run | Yrd Mat Mat Mat Fac Fac Ext Fac Fac Slots Evolved 12 | . . 2 2 2 2 . 2 2 Power 1 | . . . . . 1 . . . Propulsion 3 | . . 1 . 1 . . 1 . Utility 6 | . . 1 1 1 1 . 1 1 Weapon 2 | . . . 1 . . . . 1 Parts Attached 97 | 2 3 14 21 12 7 10 7 21 Power 16 | . . 3 1 1 2 4 3 2 Engine 9 | . . 3 1 1 1 1 2 . Core 5 | . . . . . 1 3 1 . Reactor 2 | . . . . . . . . 2 Propulsion 17 | . . 4 5 4 . . . 4 Treads 12 | . . 2 3 3 . . . 4 Leg . | . . . . . . . . . Wheel 5 | . . 2 2 1 . . . . Hover . | . . . . . . . . . Flight . | . . . . . . . . . Utility 36 | 2 2 1 8 6 3 2 4 8 Device 15 | 2 . . . 2 1 2 2 6 Storage 4 | . 1 . 2 . . . 1 . Processor 7 | . . 1 3 2 . . 1 . Hackware 2 | . . . . . 2 . . . Protection 8 | . 1 . 3 2 . . . 2 Artifact . | . . . . . . . . . Weapon 28 | . 1 6 7 1 2 4 . 7 Energy Gun 2 | . . . . . . . . 2 Energy Cannon 3 | . . . . . 1 1 . 1 Ballistic Gun 12 | . 1 5 4 . . 1 . 1 Ballistic Cannon 2 | . . . 1 . 1 . . . Launcher 3 | . . . 1 . . . . 2 Special Weapon 1 | . . . . . . 1 . . Impact Weapon 2 | . . 1 . 1 . . . . Slashing Weapon 2 | . . . 1 . . 1 . . Piercing Weapon . | . . . . . . . . . Special Melee Weapon 1 | . . . . . . . . 1 Unidentified Prototypes 9 | . . 2 1 . 1 . 2 3 Parts Lost 35 | . . 1 7 . . 1 . 26 Power 6 | . . . 1 . . 1 . 4 Propulsion 12 | . . . 4 . . . . 8 Utility 7 | . . . . . . . . 7 Weapon 10 | . . 1 2 . . . . 7 Highest Loss Streak 18 | . . 1 3 . . 1 . 18 To Critical Strikes . | . . . . . . . . . Average Backups 19 | 7 9 13 18 23 23 24 23 22 Power . | 1 1 1 . . . . 1 . Propulsion 2 | 3 2 3 2 1 2 3 2 1 Utility 11 | . 4 6 13 16 14 13 13 14 Weapon 4 | 1 1 2 3 5 6 6 6 5 Tool/Special . | . . . . . . . . . Unused Backups 37 | 7 4 7 4 2 2 . 3 8 Power 5 | 1 . 2 . . . . 2 . Propulsion 5 | 3 1 1 . . . . . . Utility 20 | 1 1 3 3 2 2 . 1 7 Weapon 7 | 2 2 1 1 . . . . 1 Tool/Special . | . . . . . . . . . Average Slot Usage (%) 95 | . 100 99 97 94 90 92 93 94 Engine 8 | . 14 11 8 7 6 5 8 6 Core 1 | . . . . . 5 5 1 2 Treads 14 | . . 10 9 22 13 13 17 21 Leg 2 | . 28 . . . . . . . Wheel 8 | . . 21 17 3 6 6 5 1 Device 8 | . 12 15 3 4 6 6 10 14 Storage 7 | . 14 11 9 7 6 6 5 5 Processor 10 | . . 5 17 23 8 6 7 10 Hackware 4 | . . . . . 7 13 11 5 Protection 3 | . 1 1 5 1 6 6 2 4 Energy Cannon 3 | . . . . . 3 8 5 9 Ballistic Gun 13 | . 28 17 21 17 8 6 5 4 Ballistic Cannon 1 | . . . . . 2 2 3 1 Impact Weapon 1 | . . 4 1 . 3 . . . Peak Build Rating 96 | 9 9 23 35 47 60 68 78 96 Average Rating 46 | 7 8 18 30 42 53 64 74 89 On Entrance 35 | 6 8 9 23 30 43 60 68 74 Avg Prop Armor Cover (%) 13 | . . 10 8 16 15 15 20 16 Naked Turns . | . . . . . . . . . Heaviest Build 146 | 12 27 35 111 107 121 121 130 146 Greatest Support 125 | 20 20 24 24 80 28 28 60 125 Greatest Overweight (x) 5 | . 1 1 4 3 4 4 4 5 Average Overweight (x) 2 | . . 1 2 2 3 3 3 2 Largest Inventory Capacity 25 | 8 15 15 25 25 25 25 25 25 Average Capacity 21 | 8 10 15 21 25 25 25 25 25 Most Carried 25 | 8 15 15 25 25 25 25 25 25 Average Carried 20 | 6 9 13 19 24 24 24 24 23 Final Capacity 25 | 8 15 15 25 25 25 25 25 25 Final Carried 25 | 8 15 15 25 24 25 25 25 21 Class Distribution -------------------- 32% | Mutant 26% | Gunner 18% | Hacker-Gunner 5% | Scientist-Mutant 5% | Hacker-Mutant 3% | Scavenger-Mutant Dominant Class ---------------- Mutant | -10/Materials Mutant | -9/Materials Gunner | -8/Materials Mutant | -7/Factory Hacker-Gunner | -6/Factory Hacker-Gunner | -6/Extension Hacker-Gunner | -5/Factory Gunner | -4/Factory Resources | -11 -10 -9 -8 -7 -6 -6 -5 -4 ----------- Run | Yrd Mat Mat Mat Fac Fac Ext Fac Fac Matter Collected 4782 | 383 290 452 1062 394 354 1045 317 485 Remotely . | . . . . . . . . . Salvage Created 5598 | 218 247 755 1192 515 235 744 316 1376 Parts 314 | 18 20 53 73 33 12 21 11 73 Haulers Intercepted 6 | . 1 . 1 1 . . 2 1 Recyclers Shooed 7 | . . . 5 . . . 1 1 Parts Field Recycled . | . . . . . . . . . Retrieved Matter . | . . . . . . . . . Parts Self-Destructed . | . . . . . . . . . Prevented . | . . . . . . . . . Parts Restored . | . . . . . . . . . Kills | -11 -10 -9 -8 -7 -6 -6 -5 -4 ------- Run | Yrd Mat Mat Mat Fac Fac Ext Fac Fac Combat Hostiles Destroyed 93 | . 7 16 25 9 2 12 2 20 Melee 3 | . . 1 . . . 2 . . Guns 61 | . 7 15 21 9 . 4 . 5 Cannons 17 | . . . 1 . 2 5 . 9 AOE 8 | . . . 3 . . . . 5 Classes Destroyed 15 | 3 4 4 3 1 . . . . Worker 8 | 2 . . 2 . 1 . . 3 Builder 9 | . . 3 1 1 1 . . 3 Tunneler 6 | 5 . . 1 . . . . . Hauler 6 | . 1 . 1 1 . . 2 1 Recycler 5 | 1 . 1 1 . 1 1 . . Mechanic 2 | . . 1 1 . . . . . Operator 1 | . 1 . . . . . . . Watcher 6 | . . 2 2 . . . 1 1 Swarmer 22 | . 5 7 8 . . 2 . . Grunt 34 | . 2 3 8 5 . 6 . 10 Sentry 16 | . . 6 5 2 . 3 . . Specialist 4 | . . . 2 . . . . 2 Hunter 6 | . . . 1 . . . 1 4 Programmer 9 | . . . . 2 2 1 1 3 Heavy 2 | . . . 1 . . . . 1 Best Kill Streak 8 | 3 3 8 5 3 3 2 2 6 Combat Bots Only 8 | . 3 8 4 3 1 2 1 5 Max Kills in Single Turn 3 | 1 1 2 3 1 1 1 1 2 Gunslinging 1 | . . 1 . . . . . . Exploded 2 | . . . 2 . . . . 2 Melee 1 | . . 1 . . . 1 . . Uniques/NPCs Destroyed . | . . . . . . . . . Combat | -11 -10 -9 -8 -7 -6 -6 -5 -4 -------- Run | Yrd Mat Mat Mat Fac Fac Ext Fac Fac Hostile Shots Fired 797 | . 42 72 123 78 8 103 5 366 Missed 266 | . 10 20 32 34 4 34 1 131 Hits 531 | . 32 52 91 44 4 69 4 235 Projectile 531 | . 32 52 91 44 4 69 4 235 Critical Strikes 25 | . . 2 3 1 1 1 . 17 Actively Blocked 3 | . . . . . . . . 3 Part Disruptions 2 | . . . . . . . . 2 Damage Taken 8247 | . 321 694 1445 436 59 785 35 4472 Core 854 | . 71 127 217 22 . 101 . 316 Absorbed by Shields 113 | . . . . . . . 36 77 Redirected to Shielding 3 | . 1 2 . . . . . . Ignored by Resistances 410 | . . . . . . . . 410 Core Remaining (%) 83 | 100 71 68 60 96 . 88 100 . Volleys Fired 359 | 31 30 46 86 23 3 65 9 66 Largest 4 | 2 2 2 3 3 3 3 3 4 Hottest 250 | 40 40 43 75 65 150 205 160 250 Shots Fired 790 | 62 60 84 215 68 9 117 23 152 Gun 542 | 62 60 84 197 68 3 26 9 33 Cannon 223 | . . . 13 . 6 83 14 107 Launcher 17 | . . . 5 . . . . 12 Special 8 | . . . . . . 8 . . Kinetic 602 | 62 60 84 210 68 6 44 14 54 Thermal 163 | . . . . . 3 65 9 86 Explosive 17 | . . . 5 . . . . 12 Electromagnetic . | . . . . . . . . . Robot Hit Streak 30 | 13 5 29 30 13 5 15 9 16 Robot Miss Streak 6 | 2 4 2 6 2 2 3 1 3 Penetration Max 1 | . . . . . . 1 . . Secondary Targets 9 | . 1 2 4 2 . . . . Max Gunslinging Chain 1 | . 1 1 1 1 . . . . Shots Hit Robots 545 | 38 36 68 152 51 9 69 17 105 Core Hits 244 | 14 17 27 62 24 3 22 6 69 Critical Kills 4 | . . 1 . . . . 2 1 Critical Parts Destroyed 8 | 1 1 3 . . 1 2 . . Critical Strikes 17 | 1 1 5 2 . 1 3 2 2 Meltdown 2 | . . . . . . . 2 . Destroy 7 | 1 1 2 . . . 2 . 1 Blast 4 | . . . 2 . . 1 . 1 Smash 4 | . . 3 . . 1 . . . Melee Attacks 47 | . . 18 3 7 11 3 2 3 Impact 32 | . . 18 . 2 11 1 . . Slashing 14 | . . . 3 5 . 2 2 2 Piercing . | . . . . . . . . . Sneak Attacks 10 | . . 4 . 1 3 1 1 . Combat Hostiles . | . . . . . . . . . Follow-up Attacks . | . . . . . . . . . Damage Inflicted 12981 | 397 361 1194 2935 869 480 1849 510 4386 Guns 5509 | 397 361 797 2095 768 36 511 83 461 Cannons 4539 | . . . 493 . 144 1122 304 2476 Explosions 1796 | . . . 347 . . . . 1449 Melee 1137 | . . 397 . 101 300 216 123 . Ramming . | . . . . . . . . . Kinetic 7022 | 397 361 797 2588 768 145 845 193 928 Thermal 3026 | . . . . . 35 788 194 2009 Explosive 1796 | . . . 347 . . . . 1449 Electromagnetic . | . . . . . . . . . Impact 918 | . . 397 . 101 300 120 . . Slashing 219 | . . . . . . 96 123 . Piercing . | . . . . . . . . . Highest Corruption 4 | . . 4 . . . . 1 1 Average Corruption 1 | . . 2 . . . . 1 1 Corruption Purged . | . . . . . . . . . Corruption Blocked . | . . . . . . . . . Effects 17 | . . 10 . . . . 1 6 Message Errors 3 | . . 1 . . . . . 2 Matter Fused 5 | . . 3 . . . . . 2 Heat Flow Errors 1 | . . . . . . . . 1 Energy Discharges 2 | . . 2 . . . . . . Parts Fused 1 | . . 1 . . . . . . Data Loss (minor) 1 | . . 1 . . . . . . Misfires 1 | . . 1 . . . . . . Alerts 1 | . . . . . . . 1 . Weapon Failures 2 | . . 1 . . . . . 1 Overload Shots . | . . . . . . . . . Overflow Damage 616 | . . 261 . 81 149 107 2 16 Projectiles 28 | . . . . . . 17 . 11 Explosions 5 | . . . . . . . . 5 Melee 583 | . . 261 . 81 149 90 2 . Knockbacks 19 | . . . 3 . 1 7 1 7 Impact 2 | . . . . . 1 1 . . Kinetic 15 | . . . 3 . . 5 1 6 Secondary 2 | . . . . . . 1 . 1 Self-Inflicted Damage 82 | . . . 22 . . . . 60 Shots 5 | . . . 2 . . . . 3 Rammed . | . . . . . . . . . Targets Rammed . | . . . . . . . . . Kicked . | . . . . . . . . . Crushed . | . . . . . . . . . Highest Temperature 511 | . 22 23 202 30 161 301 111 511 Average Temperature 85 | . 10 6 41 10 70 102 40 131 Received Heat Transfer 1968 | . 90 228 369 138 . 267 . 876 Effects 4 | . . . . . . . . 4 Interference 3 | . . . . . . . . 3 Matter Decay 1 | . . . . . . . . 1 Siege Activations . | . . . . . . . . . Martial Activations . | . . . . . . . . . Shielding Activations . | . . . . . . . . . Robots Disrupted . | . . . . . . . . . Combat Hostiles . | . . . . . . . . . Robots Corrupted 3 | . . 1 . . 1 1 . . Combat Hostiles . | . . . . . . . . . Parts Fried 16 | . . 5 . 4 4 3 . . Impact Corruptions 14 | . . 7 . 1 4 2 . . Robots Melted 4 | . . . . . . 1 2 1 Combat Hostiles 4 | . . . . . . 1 2 1 Parts Melted 6 | . . . . . . . 6 . Heat Transferred 4255 | . . . . . 37 1036 259 2923 Parts Sabotaged . | . . . . . . . . . Parts Stolen . | . . . . . . . . . Parts Stripped . | . . . . . . . . . Power Chain Reactions . | . . . . . . . . . Alert | -11 -10 -9 -8 -7 -6 -6 -5 -4 ------- Run | Yrd Mat Mat Mat Fac Fac Ext Fac Fac Maximum Alert Level 2 | . . 1 2 . . 1 . 1 Low Security (%) 82 | 100 100 72 28 100 100 92 100 91 Level 1 13 | . . 27 48 . . 7 . 8 Level 2 3 | . . . 23 . . . . . Level 3 . | . . . . . . . . . Level 4 . | . . . . . . . . . Level 5 . | . . . . . . . . . High Security . | . . . . . . . . . Max Security . | . . . . . . . . . Peak Influence 463 | 10 118 323 463 186 43 230 93 248 Initial 186 | . . 42 133 186 43 . 68 . Average 100 | 1 23 100 281 80 10 102 31 68 Influence Increases 3606 | 40 213 578 782 286 97 740 129 741 Destroy 0b10 Robot/C 2140 | . 140 320 500 180 40 500 60 400 Destroy 0b10 Robot/NC 215 | 40 10 35 45 10 15 5 15 40 Destroy Leader 534 | . 32 114 136 62 20 60 26 84 Allied During Kill 124 | . . . . . . 119 5 . Successful Hack 159 | . 16 54 17 28 12 32 . . Disable Machine 30 | . . . 15 . . . . 15 Destroy Structure 269 | . . 10 39 6 10 24 8 172 Lose Combat Pursuer 135 | . 15 45 30 . . . 15 30 Influence Decreases 3395 | 40 111 363 688 608 186 600 269 530 Entered New Map 587 | . . 60 184 225 46 . 72 . Time Decay 2188 | 40 111 293 434 383 140 350 167 270 Lost Part 350 | . . 10 70 . . 10 . 260 Lost Ally 270 | . . . . . . 240 30 . Squads Dispatched 27 | . . 4 4 3 1 4 3 8 Investigation 5 | . . 1 1 1 . 1 . 1 Extermination 6 | . . . . 2 1 . 1 2 Reinforcement 16 | . . 3 3 . . 3 2 5 Assault . | . . . . . . . . . Garrison . | . . . . . . . . . Intercept . | . . . . . . . . . Searches Triggered . | . . . . . . . . . Construction Impeded 4 | . . 1 . . . 2 . 1 Haulers Reinforced 3 | . . . . . . . 2 1 Active Scanning Responses . | . . . . . . . . . Cargo Convoy Interrupts . | . . . . . . . . . Stealth | -11 -10 -9 -8 -7 -6 -6 -5 -4 --------- Run | Yrd Mat Mat Mat Fac Fac Ext Fac Fac Distress Signals 11 | . 1 2 3 . . 2 . 3 Communications Jammed . | . . . . . . . . . Distress Signals . | . . . . . . . . . Times Spotted 146 | . 11 25 35 10 2 26 5 32 Peak Tracking Total 9 | . 4 6 5 3 1 5 2 9 Tactical Retreats 7 | . 1 2 1 . . . 1 2 Traps | -11 -10 -9 -8 -7 -6 -6 -5 -4 ------- Run | Yrd Mat Mat Mat Fac Fac Ext Fac Fac Traps Triggered 7 | . . . 1 1 . 1 3 1 Indirectly . | . . . . . . . . . Trap Hack Attempts . | . . . . . . . . . Triggered . | . . . . . . . . . Disarmed . | . . . . . . . . . Reprogrammed . | . . . . . . . . . Reused . | . . . . . . . . . Traps Extracted . | . . . . . . . . . Installed . | . . . . . . . . . Triggered . | . . . . . . . . . Machines | -11 -10 -9 -8 -7 -6 -6 -5 -4 ---------- Run | Yrd Mat Mat Mat Fac Fac Ext Fac Fac Machines Disabled 2 | . . . 1 . . . . 1 Max in Single Turn 1 | . . . 1 . . . . 1 Machines Repaired . | . . . . . . . . . Machines Dismantled . | . . . . . . . . . Machines Sabotaged . | . . . . . . . . . Overloaded Fab Kills . | . . . . . . . . . Hacking | -11 -10 -9 -8 -7 -6 -6 -5 -4 --------- Run | Yrd Mat Mat Mat Fac Fac Ext Fac Fac Machines Accessed 41 | . 3 6 7 4 3 12 4 2 Terminals 32 | . 3 4 5 3 2 11 2 2 Fabricators 1 | . . . . . . . 1 . Repair Stations 1 | . . . . 1 . . . . Recycling Units 2 | . . . . . . 1 1 . Scanalyzers 4 | . . 2 1 . 1 . . . Garrison Access 1 | . . . 1 . . . . . Total Hacks 92 | . 4 10 17 11 9 32 4 5 Successful 38 | . 2 8 7 3 1 15 2 . Failed 53 | . 2 2 9 8 8 17 2 5 Catastrophic 9 | . . 1 2 2 . 2 1 1 Database Lockouts 1 | . . . 1 . . . . . Manual 18 | . . 3 7 . 2 6 . . Terminals 75 | . 4 6 12 8 8 30 2 5 Fabricators 1 | . . . . . . . 1 . Repair Stations 3 | . . . . 3 . . . . Recycling Units 3 | . . . . . . 2 1 . Scanalyzers 7 | . . 4 2 . 1 . . . Garrison Access 3 | . . . 3 . . . . . Terminal Hacks 24 | . 2 2 5 2 1 11 1 . Part Schematic 1 | . . . . 1 . . . . Robot Analysis 1 | . . . 1 . . . . . Prototype ID Bank 2 | . 1 . . . . 1 . . Open Door 5 | . . . . . . 5 . . Open DSF 1 | . . . . . . . 1 . Branch Access Points 1 | . 1 . . . . . . . Alert Level 3 | . . 1 . 1 . 1 . . Locate Traps 3 | . . . 1 . 1 1 . . Dispatch Records 1 | . . . 1 . . . . . Surveillance Status 2 | . . . 1 . . 1 . . Hauler Manifests 1 | . . 1 . . . . . . Registered Components 2 | . . . 1 . . 1 . . Zone Layout 1 | . . . . . . 1 . . Fabricator Hacks 1 | . . . . . . . 1 . Network Status 1 | . . . . . . . 1 . Repair Station Hacks 1 | . . . . 1 . . . . Scan Component 1 | . . . . 1 . . . . Recycling Unit Hacks 1 | . . . . . . 1 . . Report Inventory 1 | . . . . . . 1 . . Scanalyzer 5 | . . 4 1 . . . . . Retrieve Study 5 | . . 4 1 . . . . . Garrison Access Hacks . | . . . . . . . . . Unauthorized Hacks 6 | . . 2 1 . . 3 . . Terminals 6 | . . 2 1 . . 3 . . Assimilate 2 | . . 1 . . . 1 . . Botnet 4 | . . 1 1 . . 2 . . Fabricators . | . . . . . . . . . Repair Stations . | . . . . . . . . . Recycling Units . | . . . . . . . . . Scanalyzers . | . . . . . . . . . Garrison Access . | . . . . . . . . . Data Cores Recovered 1 | . 1 . . . . . . . Used 1 | . 1 . . . . . . . Hacking Detections 28 | . 3 5 5 4 3 4 2 2 Full Trace Events 3 | . . 1 . 1 . 1 . . Feedback Events 1 | . . 1 . . . . . . Corruption 1 | . . 1 . . . . . . Feedback Blocked . | . . . . . . . . . Robot Schematics Acquired . | . . . . . . . . . Robots Built . | . . . . . . . . . Authchips . | . . . . . . . . . Time . | . . . . . . . . . Total Robot Build Rating . | . . . . . . . . . Part Schematics Acquired 1 | . . . . 1 . . . . Parts Built . | . . . . . . . . . Authchips . | . . . . . . . . . Time . | . . . . . . . . . Total Part Build Rating . | . . . . . . . . . Part Studies Acquired 5 | . . 4 1 . . . . . Parts Repaired . | . . . . . . . . . Time . | . . . . . . . . . Parts Recycled . | . . . . . . . . . Recycled Matter . | . . . . . . . . . Retrieved Matter . | . . . . . . . . . Retrieved Components . | . . . . . . . . . Parts Scanalyzed . | . . . . . . . . . Part Schematics Acquired . | . . . . . . . . . Parts Damaged . | . . . . . . . . . Bothacking | -11 -10 -9 -8 -7 -6 -6 -5 -4 ------------ Run | Yrd Mat Mat Mat Fac Fac Ext Fac Fac Used RIF Installer . | . . . . . . . . . Robots Hacked 2 | . . . . . . 1 . 1 Non-combat . | . . . . . . . . . Combat 2 | . . . . . . 1 . 1 Robot Hacks Applied 2 | . . . . . . 1 . 1 parse_system 2 | . . . . . . 1 . 1 Relay Couplers Released 3 | . . . . . . . . 3 Programmers 3 | . . . . . . . . 3 Fabnet Peak Effective % . | . . . . . . . . . Robots Rewired 11 | . . . . . . 10 1 . Allies Hacked 2 | . . . . . . . 2 . Hacks Repelled . | . . . . . . . . . Allies | -11 -10 -9 -8 -7 -6 -6 -5 -4 -------- Run | Yrd Mat Mat Mat Fac Fac Ext Fac Fac Total Allies 18 | . . . . . . 17 1 . Largest Group 9 | . . . . . . 9 3 . Highest-Rated Group 275 | . . . . . . 275 128 . Highest-Rated Ally 64 | . . . . . . 39 64 . Total Orders . | . . . . . . . . . Ally Attacks 111 | . . . . . . 110 1 . Total Damage 2209 | . . . . . . 2143 66 . Kills 15 | . . . . . . 14 1 . Allies Corrupted 3 | . . . . . . 1 2 . Allies Melted 1 | . . . . . . 1 . . Intel | -11 -10 -9 -8 -7 -6 -6 -5 -4 ------- Run | Yrd Mat Mat Mat Fac Fac Ext Fac Fac Active Infowar (turns) 3435 | 174 429 840 452 876 399 . 263 2 Terrain 1061 | 172 . 839 50 . . . . . Seismic 2372 | 2 429 479 402 396 399 . 263 2 T.N.C. 598 | . . . . 598 . . . . Machine Analysis 789 | . . . 154 635 . . . . Robot Analysis Total 1 | . . . 1 . . . . . Derelict Logs Recovered . | . . . . . . . . . Drone Launches . | . . . . . . . . . Drone Recoveries . | . . . . . . . . . Exploration | -11 -10 -9 -8 -7 -6 -6 -5 -4 ------------- Run | Yrd Mat Mat Mat Fac Fac Ext Fac Fac Turns Passed 6686 | 263 484 927 1062 984 511 981 553 921 Spaces Moved 3260 | 90 281 530 584 440 298 466 278 293 Core . | . . . . . . . . . Treads 360 | . . 1 5 183 . . 4 167 Legs 371 | 90 281 . . . . . . . Wheels 2529 | . . 529 579 257 298 466 274 126 Hover . | . . . . . . . . . Flight . | . . . . . . . . . Fastest Speed 95 | 120 120 95 95 145 145 145 160 160 Average Speed 146 | 120 133 98 117 188 148 156 161 214 Slowest Speed 250 | 120 190 200 240 250 160 160 250 248 Overloaded Moves . | . . . . . . . . . Propulsion Burnouts . | . . . . . . . . . Robots Hopped . | . . . . . . . . . Potential Cave-ins 8 | . . . . . . 8 . . Cave-ins Triggered . | . . . . . . . . . Exploration Rate (%) 29 | 5 48 51 52 15 9 58 11 12 Regions Visited 8 Branch Regions 1 Pre-discovered Areas . | . . . . . . . . . Known Exits Taken . | . . . . . . . . . Unknown Exits Taken 8 | 1 1 1 1 1 1 1 1 . Scrap Searched . | . . . . . . . . . Spaces Dug 47 | . . 11 3 6 8 13 4 2 Terrain Destroyed 226 | . . 11 48 6 10 39 4 108 Melee 30 | . . 11 3 6 8 . . 2 Projectile 64 | . . . 1 . 2 39 4 18 AOE 132 | . . . 44 . . . . 88 Terrain Rammed . | . . . . . . . . . Walls Destroyed . | . . . . . . . . . Machines Disabled . | . . . . . . . . . Actions | -11 -10 -9 -8 -7 -6 -6 -5 -4 --------- Run | Yrd Mat Mat Mat Fac Fac Ext Fac Fac Total 4471 | 188 340 830 803 538 337 624 360 451 Wait 461 | 62 12 190 54 32 9 25 48 29 Move 3252 | 89 280 529 583 439 297 465 277 293 Hop . | . . . . . . . . . Pick Up 80 | 3 10 9 26 7 5 4 4 12 Fast Attach 22 | 1 . 2 6 4 2 1 2 4 Attach 45 | . . 5 11 4 1 . 2 22 Detach 14 | . . 1 7 3 . . . 3 Swap 84 | 1 3 18 12 11 5 13 8 13 Drop 67 | 1 5 12 15 8 4 10 6 6 Fire 359 | 31 30 46 86 23 3 65 9 66 Melee 47 | . . 18 3 7 11 3 2 3 Ram . | . . . . . . . . . Kick . | . . . . . . . . . Crush . | . . . . . . . . . Escape Stasis . | . . . . . . . . . Rewire 40 | . . . . . . 38 2 . Trap . | . . . . . . . . . Miscellaneous . | . . . . . . . . . Route ------- -11/Scrapyard -10/Materials (discovered 2 exits: *Mat / Min) -9/Materials (discovered 2 exits: *Mat / [*Min]) -8/Materials (discovered 4 exits: *Fac x2 / [*Sto x2]) -7/Factory -6/Factory -6/Extension (discovered 2 exits: *Fac / [*Cet]) -5/Factory -4/Factory History --------- Turn | Location | Event 6 | -11/Scrapyard | Discovered new exit (range 3) 264 | -11/Scrapyard | Entered Materials 312 | -10/Materials | Build established: Mutant 420 | -10/Materials | Discovered new exit (range 8) 423 | -10/Materials | Identified exit to Mines 748 | -10/Materials | Entered another Materials area 748 | -9/Materials | Evolved 2 slots: Propulsion x1, Utility x1 1260 | -9/Materials | Discovered new exit (range 11) 1408 | -9/Materials | Destroyed 8 combat bots 1604 | -9/Materials | Discovered new exit (range 16) 1675 | -9/Materials | Entered another Materials area 1675 | -8/Materials | Evolved 2 slots: Utility x1, Weapon x1 1779 | -8/Materials | Central database locked down 1847 | -8/Materials | Discovered new exit (range 13) 1849 | -8/Materials | Discovered new exit (range 9) 1927 | -8/Materials | Lost 3 parts (1p2n) 2166 | -8/Materials | Discovered new exit (range 12) 2198 | -8/Materials | Discovered new exit (range 7) 2267 | -8/Materials | Build established: Gunner 2737 | -8/Materials | Entered Factory 2737 | -7/Factory | Evolved 2 slots: Propulsion x1, Utility x1 2973 | -7/Factory | Build established: Mutant 3512 | -7/Factory | Discovered new exit (range 12) 3553 | -7/Factory | Build established: Gunner 3721 | -7/Factory | Entered another Factory area 3721 | -6/Factory | Evolved 2 slots: Power x1, Utility x1 4161 | -6/Factory | Discovered new exit (range 12) 4232 | -6/Factory | Entered Extension 4336 | -6/Extension | Build established: Hacker-Gunner 4400 | -6/Extension | Rescued a captive Derelict 4444 | -6/Extension | Rescued a captive Derelict 4594 | -6/Extension | Lost 3 allies 4603 | -6/Extension | Rescued a captive Derelict 4605 | -6/Extension | Rescued a captive Derelict 4750 | -6/Extension | Spotted B-75 Beast 4786 | -6/Extension | Spotted B-75 Beast 4818 | -6/Extension | Lost 3 allies 4966 | -6/Extension | Rescued a captive Derelict 4966 | -6/Extension | Rescued a captive Derelict 5119 | -6/Extension | Rescued a captive Derelict 5180 | -6/Extension | Discovered new exit (range 10) 5182 | -6/Extension | Discovered new exit (range 6) 5213 | -6/Extension | Entered Factory 5213 | -5/Factory | Accompanied by 2 allies 5213 | -5/Factory | Evolved 2 slots: Propulsion x1, Utility x1 5753 | -5/Factory | Discovered new exit (range 9) 5766 | -5/Factory | Entered another Factory area 5766 | -4/Factory | Evolved 2 slots: Utility x1, Weapon x1 5900 | -4/Factory | Found Prototype Launcher 5903 | -4/Factory | Identified Mni. Smartbomb Launcher 6080 | -4/Factory | Lost 3 parts (1p2n) 6158 | -4/Factory | Build established: Gunner 6532 | -4/Factory | Lost 5 parts (1p1n1u2w) 6687 | -4/Factory | Self-destructed Last Messages --------------- 06665_ M-13 Machinist repairs G-73 Enforcer Hvy. Laser. 06667_ K-01 Serf collects debris. 06667_ K-01 Serf destroyed. 06667_ Slug penetrates G-73 Enforcer. 06671_ G-73 Enforcer destroyed. 06671_ U-05 Engineer lays Concrete. 06671_ Hvy. Plasma Cannon destroyed. 06672_ U-05 Engineer builds a Wall. 06674_ F-cell Engine destroyed. 06678_ ALERT: Security rotation in progress. 06678_ K-01 Serf collects debris. 06680_ U-05 Engineer builds a Wall. 06680_ U-05 Engineer destroyed. 06680_ Coil Gun destroyed. 06680_ Hardlight Generator destroyed. 06682_ R-10 Processor collects Prototype Device. 06682_ K-01 Serf collects debris. 06685_ G-67 Veteran destroyed. 06685_ K-01 Serf collects debris. 06685_ Penetrated by Slug. Map ----- +----------------------------------------------------+ | ?????????????????????????????????????????????##### | | ????????????????????????????????????????????? | | ????????????????????????????????????????????? | | ??????????????????????????????????????????????"" " | | ?????????????????????????????????????????????""" " | | ??????????????????????????????!???????????"" """ " | | ??????????????????????????????!??????????? | | ?????????????????#????????????!??????????????""" " | | ??????????????? ??????????? ????????????? """ " | | ????????????? #?????????? ??????????""" """ " | | ???????????? ?????????? ""????? | | ???????????? #????????? """ #??? """ """ " | | ???????????# #???????? """ ###? """ """ " | | ??????????? ##?????? %# # """ """ " | | ??????????# % ###;##########/ ##### | | ?????????? =h % u % """ """ " | | ?????????? """ """ " | | ????????? !* """ """ " | | ????????? !%=% | | ???????? !* =%= ! | | ???????? !!| k* ! % % | | ???????? !!%!!p%[ = % | | ????????????#+#######!% ==#####+############ ####+ | | ???????????????????##%! !; =!*! # | | ????????????????????#* # %%= +%/ | | ????????????????????# @# " ### ! " " | | ????????????????????# # """ % # " " | | ????????????????????# # "" # " " | | ????????????????????# # """ / ! ### " " | | ????????????????????# # //! #?# "" " " | | ????????????????????# # // ### "" " " | | ????????????????????# ; # # "T " " | | ????????????????????# # !### "" " " | | ????????????????????# # #?# "" " " | | ????????????????????# # ! =#?# | | ???????????????????? gg ##############?######### | | ????????????????????###/###??????????????????????? | | ?????????????????????? g?????????????????????????? | | ?????????????????????? ?????????????????????????? | | ??????????????????????""?????????????????????????? | | ?????????????????????????????????????????????????? | | ?????????????????????????????????????????????????? | | ?????????????????????????????????????????????????? | | ?????????????????????????????????????????????????? | | ?????????????????????????????????????????????????? | | ?????????????????????????????????????????????????? | | ?????????????????????????????????????????????????? | | ?????????????????????????????????????????????????? | | ?????????????????????????????????????????????????? | | | +----------------------------------------------------+ Best States ------------- Heat Dissipation 70 Energy Generation 38 Energy Capacity 900 Matter Stores 300 Matter Capacity 300 Sight Range 16 Terrain Scan Range 16 Terrain Scan Density 110 Armor Coverage 225 Resistance: KI 30 Core Shielding 20 Weapon Shielding 33 Phase Shifting 10 Evasion (%) 55 Targeting Accuracy 16 Target Analysis 5 Core Analysis 6 Recoil Reduction 5 Energy Filtering 50 Kinecelleration 30 Offensive Hacking 10 Defensive Hacking 10 Item Schematics ----------------- Kinecellerator | -7/Factory | Hacked Robot Schematics ------------------ None Fabricated ------------ Nothing Repaired ---------- Nothing Studied --------- Hvy. Flail | -9/Materials | Hacked Arm. Wheel | -9/Materials | Hacked Hvy. Assault Rifle | -9/Materials | Hacked Imp. Treads | -9/Materials | Hacked Imp. Grenade Launcher | -8/Materials | Hacked Alien Tech Used ----------------- None Achievements -------------- None Challenges ------------ None Game ------ Seed ShockboltPlasmaConstruct Manual? 0 Play Time 02:31:05 Cumulative 208.3 hours Start 2026.07.17 @ 15:41:46 End 2026.07.26 @ 17:04:33 Sessions 25 Manual Loads 0 Difficulty Rogue Special Mode None Game No. 338 Rogue 334 Adventurer 0 Explorer 4 Win Type - Total 0 Types 0/0/0/0/0/0/0/0/0/0 Lore% 34 Gallery% 44 Achievement% 31 Wizard Run 0 Options --------- Layout 0 ASCII 0 Keyboard 1 Movement Arrows Keybinds 0 Fullscreen 1 Font 24/Smallcaps Map View 183x50 Zoom Use 0% Tactical HUD 1 Map Filters NONE Filters NONE Steam 1 RUN: a0be18d9-331f-4261-8fc7-787ee7e1f3a6